[Event "*** Titled Tuesday Blitz"]
[Site "Chess.com"]
[Date "2020.05.26"]
[Round "1"]
[White "Korchmar_Vasiliy"]
[Black "Richarzard69"]
[Result "1-0"]
[WhiteElo "2572"]
[BlackElo "2223"]
[TimeControl "180+1"]
[EndTime "10:08:17 PDT"]
[Termination "Korchmar_Vasiliy won by resignation"]

1. d4 {[%clk 0:03:00.9]} 1... Nf6 {[%clk 0:02:58.6]} 2. c4 {[%clk 0:03:01.2]}
2... c5 {[%clk 0:02:58.3]} 3. d5 {[%clk 0:03:01.3]} 3... e6 {[%clk 0:02:57.8]}
4. Nc3 {[%clk 0:03:01.2]} 4... exd5 {[%clk 0:02:57.6]} 5. cxd5 {[%clk
0:03:02.1]} 5... d6 {[%clk 0:02:57.9]} 6. Nf3 {[%clk 0:03:02.8]} 6... g6 {[%clk
0:02:58.1]} 7. g3 {[%clk 0:03:03.7]} 7... Bg7 {[%clk 0:02:55.5]} 8. Bg2 {[%clk
0:03:04]} 8... O-O {[%clk 0:02:55.9]} 9. O-O {[%clk 0:03:04.9]} 9... Re8 {[%clk
0:02:56]} 10. Bf4 {[%clk 0:03:04.5]} 10... a6 {[%clk 0:02:54]} 11. a4 {[%clk
0:03:03.9]} 11... Ne4 {[%clk 0:02:53.4]} 12. Nxe4 {[%clk 0:03:03.6]} 12... Rxe4
{[%clk 0:02:54.3]} 13. Nd2 {[%clk 0:03:04.4]} 13... Rb4 {[%clk 0:02:53.7]} 14.
Ra2 {[%clk 0:03:03.6]} 14... Bxb2 {[%clk 0:02:39]} 15. Qc2 {[%clk 0:02:37.4]}
15... Bg7 {[%clk 0:02:37.8]} 16. Nc4 {[%clk 0:02:37.6]} 16... Bf8 {[%clk
0:02:17.6]} 17. e4 {[%clk 0:02:05.2]} 17... f6 {[%clk 0:01:57]} 18. a5 {[%clk
0:01:45.4]} 18... Qc7 {[%clk 0:01:20.9]} 19. Qc3 {[%clk 0:01:03.1]} 19... Nd7
{[%clk 0:01:10.2]} 20. h4 {[%clk 0:00:54.4]} 20... Ne5 {[%clk 0:00:59.6]} 21.
Bxe5 {[%clk 0:00:52.7]} 21... fxe5 {[%clk 0:00:50.9]} 22. h5 {[%clk 0:00:52.7]}
22... Bd7 {[%clk 0:00:46.3]} 23. hxg6 {[%clk 0:00:52.1]} 23... hxg6 {[%clk
0:00:47.2]} 24. Nb6 {[%clk 0:00:49.4]} 24... Re8 {[%clk 0:00:38.4]} 25. f4
{[%clk 0:00:49.7]} 25... exf4 {[%clk 0:00:36.3]} 26. gxf4 {[%clk 0:00:49.6]}
26... Bb5 {[%clk 0:00:32.6]} 27. Rff2 {[%clk 0:00:38.7]} 27... Bg7 {[%clk
0:00:31.8]} 28. Qg3 {[%clk 0:00:37.9]} 28... Qf7 {[%clk 0:00:23.6]} 29. Rad2
{[%clk 0:00:25]} 29... Bd4 {[%clk 0:00:19.3]} 30. Rxd4 {[%clk 0:00:25.6]} 30...
Rxd4 {[%clk 0:00:19.3]} 31. e5 {[%clk 0:00:26.5]} 31... dxe5 {[%clk 0:00:14.2]}
32. fxe5 {[%clk 0:00:26.3]} 32... Rd1+ {[%clk 0:00:12.6]} 33. Kh2 {[%clk
0:00:26.6]} 33... Qh7+ {[%clk 0:00:12.2]} 34. Bh3 {[%clk 0:00:27.3]} 34... Rf8
{[%clk 0:00:08.4]} 35. Rf6 {[%clk 0:00:11.9]} 35... Rxf6 {[%clk 0:00:06.1]} 36.
exf6 {[%clk 0:00:12.8]} 36... Rd2+ {[%clk 0:00:06.6]} 37. Kg1 {[%clk 0:00:13.1]}
37... Qh5 {[%clk 0:00:05.8]} 38. Be6+ {[%clk 0:00:08.4]} 38... Kh7 {[%clk
0:00:05.2]} 39. Qc7+ {[%clk 0:00:08.2]} 39... Kh6 {[%clk 0:00:04.9]} 40. Qf4+
{[%clk 0:00:05.4]} 40... Qg5+ {[%clk 0:00:04.7]} 41. Qxg5+ {[%clk 0:00:06.1]}
41... Kxg5 {[%clk 0:00:05.6]} 42. f7 {[%clk 0:00:07]} 42... Rd1+ {[%clk
0:00:04.9]} 43. Kg2 {[%clk 0:00:07]} 43... Rf1 {[%clk 0:00:05.8]} 44. d6 {[%clk
0:00:04.8]} 44... Rf6 {[%clk 0:00:05.2]} 45. d7 {[%clk 0:00:04]} 45... Bxd7
{[%clk 0:00:05.2]} 46. Nxd7 {[%clk 0:00:04.9]} 46... Rxf7 {[%clk 0:00:03.4]} 47.
Bxf7 {[%clk 0:00:04.9]} 47... c4 {[%clk 0:00:04.2]} 48. Bxc4 {[%clk 0:00:04.3]}
48... Kf4 {[%clk 0:00:05.1]} 49. Nc5 {[%clk 0:00:04]} 49... g5 {[%clk 0:00:06]}
50. Nxb7 {[%clk 0:00:04.3]} 50... Ke5 {[%clk 0:00:06.8]} 51. Bxa6 {[%clk
0:00:04.4]} 51... Kd4 {[%clk 0:00:07.7]} 52. Bf1 {[%clk 0:00:04.4]} 52... Ke5
{[%clk 0:00:08.6]} 53. a6 {[%clk 0:00:04.8]} 53... Ke6 {[%clk 0:00:09.5]} 54.
Na5 {[%clk 0:00:05.3]} 54... Kd6 {[%clk 0:00:10.4]} 55. Nb3 {[%clk 0:00:06.2]}
55... Kc7 {[%clk 0:00:11]} 56. Nd2 {[%clk 0:00:06.7]} 56... Kb8 {[%clk
0:00:11.9]} 57. Ne4 {[%clk 0:00:07.3]} 57... Ka7 {[%clk 0:00:12.8]} 58. Nxg5
{[%clk 0:00:07.8]} 58... Kb6 {[%clk 0:00:12.9]} 59. Kf3 {[%clk 0:00:08.2]} 59...
Ka7 {[%clk 0:00:13.8]} 60. Ke4 {[%clk 0:00:08.8]} 60... Kb6 {[%clk 0:00:14.7]}
61. Kd4 {[%clk 0:00:09.3]} 61... Ka7 {[%clk 0:00:15.6]} 62. Kc5 {[%clk
0:00:09.6]} 62... Kb8 {[%clk 0:00:15.9]} 63. Kb6 {[%clk 0:00:09.9]} 63... Ka8
{[%clk 0:00:16.8]} 64. Bg2+ {[%clk 0:00:10.2]} 64... Kb8 {[%clk 0:00:17.7]} 65.
a7+ {[%clk 0:00:10.8]} 65... Kc8 {[%clk 0:00:17.6]} 66. a8=Q+ {[%clk 0:00:11.4]}
66... Kd7 {[%clk 0:00:18.5]} 1-0

[Event "*** Titled Tuesday Blitz"]
[Site "Chess.com"]
[Date "2020.05.26"]
[Round "1"]
[White "Fins0905"]
[Black "BIG_Pirate"]
[Result "0-1"]
[WhiteElo "2661"]
[BlackElo "2329"]
[TimeControl "180+1"]
[EndTime "10:08:18 PDT"]
[Termination "BIG_Pirate won by resignation"]

1. d4 {[%clk 0:03:00.6]} 1... d5 {[%clk 0:02:59.1]} 2. c4 {[%clk 0:03:00]} 2...
c6 {[%clk 0:02:59.5]} 3. Nf3 {[%clk 0:02:59.6]} 3... Nf6 {[%clk 0:02:58.9]} 4.
Nc3 {[%clk 0:02:57.4]} 4... e6 {[%clk 0:02:59]} 5. Bg5 {[%clk 0:02:55.7]} 5...
Nbd7 {[%clk 0:02:58.8]} 6. e3 {[%clk 0:02:53]} 6... Qa5 {[%clk 0:02:58.5]} 7.
cxd5 {[%clk 0:02:51.6]} 7... Nxd5 {[%clk 0:02:57.5]} 8. Qd2 {[%clk 0:02:51.1]}
8... N7b6 {[%clk 0:02:24.5]} 9. Bd3 {[%clk 0:02:32.2]} 9... Bb4 {[%clk
0:02:19.4]} 10. Rc1 {[%clk 0:02:29.9]} 10... Na4 {[%clk 0:02:19.3]} 11. O-O
{[%clk 0:02:28.1]} 11... Naxc3 {[%clk 0:02:17.2]} 12. bxc3 {[%clk 0:02:27.3]}
12... Bxc3 {[%clk 0:02:15.2]} 13. Qc2 {[%clk 0:02:05.5]} 13... h6 {[%clk
0:02:14.8]} 14. Bh4 {[%clk 0:02:05]} 14... Bb4 {[%clk 0:02:11.7]} 15. e4 {[%clk
0:01:57.3]} 15... Nf4 {[%clk 0:02:10]} 16. Bc4 {[%clk 0:01:57]} 16... O-O {[%clk
0:02:01]} 17. Ne5 {[%clk 0:01:34]} 17... Bd6 {[%clk 0:02:00.2]} 18. Bg3 {[%clk
0:01:24.5]} 18... Bxe5 {[%clk 0:01:56.6]} 19. dxe5 {[%clk 0:01:24.3]} 19... Ng6
{[%clk 0:01:56.6]} 20. f4 {[%clk 0:01:17.9]} 20... b6 {[%clk 0:01:47.4]} 21. Qb2
{[%clk 0:00:59]} 21... Ba6 {[%clk 0:01:41.4]} 22. Bxa6 {[%clk 0:00:57.1]} 22...
Qxa6 {[%clk 0:01:40.9]} 23. f5 {[%clk 0:00:52]} 23... Ne7 {[%clk 0:01:39]} 24.
Bh4 {[%clk 0:00:51.8]} 24... Rae8 {[%clk 0:01:34.2]} 25. Qf2 {[%clk 0:00:44.5]}
25... exf5 {[%clk 0:01:19]} 26. exf5 {[%clk 0:00:43]} 26... Nd5 {[%clk
0:01:09.1]} 27. Qg3 {[%clk 0:00:35]} 27... Qe2 {[%clk 0:00:54.1]} 28. Rfe1
{[%clk 0:00:27.1]} 28... Qh5 {[%clk 0:00:48.7]} 29. Rf1 {[%clk 0:00:22.8]} 29...
Qe2 {[%clk 0:00:37.9]} 30. Rce1 {[%clk 0:00:19.9]} 30... Qh5 {[%clk 0:00:28.8]}
31. h3 {[%clk 0:00:14.6]} 31... f6 {[%clk 0:00:23.1]} 32. e6 {[%clk 0:00:13.9]}
32... Ne7 {[%clk 0:00:23.3]} 33. Qg4 {[%clk 0:00:11.1]} 33... Qxg4 {[%clk
0:00:21.6]} 34. hxg4 {[%clk 0:00:12]} 34... Rd8 {[%clk 0:00:22.3]} 35. Bg3
{[%clk 0:00:12.4]} 35... Rd5 {[%clk 0:00:22.1]} 36. Rc1 {[%clk 0:00:11]} 36...
Rfd8 {[%clk 0:00:21.9]} 37. Kh2 {[%clk 0:00:09.8]} 37... Kf8 {[%clk 0:00:22.1]}
38. Rf3 {[%clk 0:00:10.1]} 38... Ke8 {[%clk 0:00:22.2]} 39. Ra3 {[%clk
0:00:10.2]} 39... Ra8 {[%clk 0:00:20.1]} 40. Bf2 {[%clk 0:00:09.8]} 40... c5
{[%clk 0:00:20]} 41. Rb1 {[%clk 0:00:09.6]} 41... Rdd8 {[%clk 0:00:15.7]} 42.
Bg3 {[%clk 0:00:09.6]} 42... Nd5 {[%clk 0:00:14]} 43. Ra4 {[%clk 0:00:09.3]}
43... Nc3 {[%clk 0:00:11.7]} 44. Ra3 {[%clk 0:00:03]} 44... Nxb1 {[%clk
0:00:11.7]} 45. Re3 {[%clk 0:00:02.9]} 45... Nd2 {[%clk 0:00:10.7]} 46. Bc7
{[%clk 0:00:02.9]} 46... Rd4 {[%clk 0:00:09]} 47. Kh3 {[%clk 0:00:03.2]} 47...
Nc4 {[%clk 0:00:08.8]} 48. Rc3 {[%clk 0:00:03]} 48... Rc8 {[%clk 0:00:08.6]} 49.
Bg3 {[%clk 0:00:02.7]} 49... Re4 {[%clk 0:00:08.7]} 50. Kh4 {[%clk 0:00:03]}
50... Ne5 {[%clk 0:00:07.6]} 51. Kh5 {[%clk 0:00:02.9]} 51... Nxg4 {[%clk
0:00:06.2]} 52. Rd3 {[%clk 0:00:03.4]} 52... Ne5 {[%clk 0:00:05.9]} 53. Rd6
{[%clk 0:00:03.5]} 53... Rd8 {[%clk 0:00:05.1]} 54. Bxe5 {[%clk 0:00:02.9]}
54... Rxe5 {[%clk 0:00:05]} 55. Rc6 {[%clk 0:00:03.2]} 55... Rxf5+ {[%clk
0:00:04.9]} 56. Kg6 {[%clk 0:00:03.7]} 56... Rg5+ {[%clk 0:00:05.1]} 57. Kh7
{[%clk 0:00:04.3]} 57... Ke7 {[%clk 0:00:03.7]} 58. Rc7+ {[%clk 0:00:04.4]}
58... Kxe6 {[%clk 0:00:03.9]} 59. Rxa7 {[%clk 0:00:05.3]} 59... Rxg2 {[%clk
0:00:04.3]} 60. Rb7 {[%clk 0:00:06.2]} 60... Rd6 {[%clk 0:00:04.6]} 61. Rxb6
{[%clk 0:00:07]} 61... Rxb6 {[%clk 0:00:03.5]} 0-1

[Event "*** Titled Tuesday Blitz"]
[Site "Chess.com"]
[Date "2020.05.26"]
[Round "1"]
[White "Karinaa87"]
[Black "Walter_White_Poland"]
[Result "1-0"]
[WhiteElo "2550"]
[BlackElo "2203"]
[TimeControl "180+1"]
[EndTime "10:08:18 PDT"]
[Termination "Karinaa87 won by checkmate"]

1. d4 {[%clk 0:03:00.3]} 1... Nf6 {[%clk 0:02:59.3]} 2. c4 {[%clk 0:02:59.7]}
2... c5 {[%clk 0:02:59.1]} 3. d5 {[%clk 0:02:57.2]} 3... e6 {[%clk 0:02:59.3]}
4. Nc3 {[%clk 0:02:56.5]} 4... exd5 {[%clk 0:02:59.5]} 5. cxd5 {[%clk
0:02:57.4]} 5... d6 {[%clk 0:03:00]} 6. Nf3 {[%clk 0:02:57.7]} 6... g6 {[%clk
0:03:00.4]} 7. Nd2 {[%clk 0:02:56.8]} 7... Nbd7 {[%clk 0:02:58]} 8. g3 {[%clk
0:02:52.1]} 8... Bg7 {[%clk 0:02:57.5]} 9. Bg2 {[%clk 0:02:51.5]} 9... O-O
{[%clk 0:02:57.3]} 10. O-O {[%clk 0:02:52]} 10... Re8 {[%clk 0:02:57.3]} 11. a4
{[%clk 0:02:50.6]} 11... a6 {[%clk 0:02:54.7]} 12. Nc4 {[%clk 0:02:45.3]} 12...
Ne5 {[%clk 0:02:54.5]} 13. Nxe5 {[%clk 0:02:43.3]} 13... Rxe5 {[%clk 0:02:54.3]}
14. Bf4 {[%clk 0:02:42.9]} 14... Re8 {[%clk 0:02:54.3]} 15. a5 {[%clk 0:02:39]}
15... b5 {[%clk 0:02:26.6]} 16. axb6 {[%clk 0:02:33.9]} 16... Qxb6 {[%clk
0:02:26.7]} 17. Qd2 {[%clk 0:02:29.1]} 17... Nd7 {[%clk 0:02:00.7]} 18. Na4
{[%clk 0:02:20.4]} 18... Qc7 {[%clk 0:02:00.1]} 19. Rac1 {[%clk 0:02:16.6]}
19... Rb8 {[%clk 0:01:43.4]} 20. b4 {[%clk 0:02:11.7]} 20... c4 {[%clk 0:01:42]}
21. Rc2 {[%clk 0:01:59.7]} 21... Ne5 {[%clk 0:01:13.6]} 22. Rfc1 {[%clk
0:01:54.1]} 22... Bf5 {[%clk 0:01:05.6]} 23. e4 {[%clk 0:01:49.5]} 23... Bd7
{[%clk 0:01:05.4]} 24. Nb2 {[%clk 0:01:46.5]} 24... Bb5 {[%clk 0:00:58.8]} 25.
Bxe5 {[%clk 0:01:44.4]} 25... Bxe5 {[%clk 0:00:58.1]} 26. Nxc4 {[%clk
0:01:43.7]} 26... Bxc4 {[%clk 0:00:56.4]} 27. Rxc4 {[%clk 0:01:43.3]} 27... Qb6
{[%clk 0:00:56.2]} 28. Bf1 {[%clk 0:01:34]} 28... Rb7 {[%clk 0:00:50.4]} 29. h4
{[%clk 0:01:33.1]} 29... h5 {[%clk 0:00:49.2]} 30. Kg2 {[%clk 0:01:31.4]} 30...
Reb8 {[%clk 0:00:48.1]} 31. f4 {[%clk 0:01:28.8]} 31... Bg7 {[%clk 0:00:47.2]}
32. Bd3 {[%clk 0:01:19.5]} 32... Kh7 {[%clk 0:00:45.1]} 33. f5 {[%clk
0:01:15.6]} 33... Be5 {[%clk 0:00:41.9]} 34. Be2 {[%clk 0:01:09.8]} 34... gxf5
{[%clk 0:00:33.7]} 35. Bxh5 {[%clk 0:01:06.8]} 35... Rg8 {[%clk 0:00:32]} 36. g4
{[%clk 0:01:01.3]} 36... fxg4 {[%clk 0:00:26.8]} 37. Rf1 {[%clk 0:00:59.5]}
37... f6 {[%clk 0:00:25.5]} 38. Qe2 {[%clk 0:00:53.2]} 38... a5 {[%clk
0:00:23.3]} 39. bxa5 {[%clk 0:00:47.5]} 39... Qxa5 {[%clk 0:00:23.3]} 40. Rc2
{[%clk 0:00:42.8]} 40... Rb3 {[%clk 0:00:20]} 41. Qc4 {[%clk 0:00:36.4]} 41...
Rg3+ {[%clk 0:00:19.2]} 42. Kh1 {[%clk 0:00:34.6]} 42... Rh3+ {[%clk 0:00:16.7]}
43. Kg1 {[%clk 0:00:33.6]} 43... Rg3+ {[%clk 0:00:16.8]} 44. Rg2 {[%clk
0:00:32.6]} 44... Rxg2+ {[%clk 0:00:17.1]} 45. Kxg2 {[%clk 0:00:32.5]} 45...
Qd2+ {[%clk 0:00:17.7]} 46. Rf2 {[%clk 0:00:32.2]} 46... Qd1 {[%clk 0:00:15.5]}
47. Qc7+ {[%clk 0:00:27.9]} 47... Rg7 {[%clk 0:00:15.3]} 48. Qc8 {[%clk
0:00:27.7]} 48... Qb1 {[%clk 0:00:12]} 49. Qf5+ {[%clk 0:00:27.8]} 49... Kh8
{[%clk 0:00:11.5]} 50. Be8 {[%clk 0:00:26.5]} 50... g3 {[%clk 0:00:08.2]} 51.
Re2 {[%clk 0:00:17.8]} 51... Qb3 {[%clk 0:00:05.6]} 52. Bg6 {[%clk 0:00:15.5]}
52... Qd3 {[%clk 0:00:05]} 53. Qh5+ {[%clk 0:00:12.9]} 53... Kg8 {[%clk
0:00:04.4]} 54. Bf5 {[%clk 0:00:13.5]} 54... Rh7 {[%clk 0:00:02.9]} 55. Qe8+
{[%clk 0:00:13.3]} 55... Kg7 {[%clk 0:00:02.5]} 56. Qg6+ {[%clk 0:00:13.8]}
56... Kf8 {[%clk 0:00:02.6]} 57. Qxh7 {[%clk 0:00:14.2]} 57... Qxe2+ {[%clk
0:00:02.8]} 58. Kh3 {[%clk 0:00:12.8]} 58... Qh2+ {[%clk 0:00:03.7]} 59. Kg4
{[%clk 0:00:13.2]} 59... g2 {[%clk 0:00:04.6]} 60. Qh8+ {[%clk 0:00:12.8]} 60...
Ke7 {[%clk 0:00:03.6]} 61. Qg7+ {[%clk 0:00:13]} 61... Kd8 {[%clk 0:00:04.5]}
62. Qd7# {[%clk 0:00:13.1]} 1-0

[Event "*** Titled Tuesday Blitz"]
[Site "Chess.com"]
[Date "2020.05.26"]
[Round "1"]
[White "tigra"]
[Black "Mikasinski"]
[Result "1-0"]
[WhiteElo "2751"]
[BlackElo "2381"]
[TimeControl "180+1"]
[EndTime "10:08:26 PDT"]
[Termination "tigra won by resignation"]

1. e4 {[%clk 0:02:59.8]} 1... c5 {[%clk 0:02:59.1]} 2. Nf3 {[%clk 0:02:59.5]}
2... d6 {[%clk 0:02:59]} 3. d4 {[%clk 0:02:59.3]} 3... cxd4 {[%clk 0:02:59.3]}
4. Nxd4 {[%clk 0:03:00.2]} 4... Nf6 {[%clk 0:02:58.9]} 5. Nc3 {[%clk 0:03:00.9]}
5... g6 {[%clk 0:02:58.9]} 6. Be3 {[%clk 0:02:59.2]} 6... Bg7 {[%clk 0:02:58.4]}
7. f3 {[%clk 0:02:59.8]} 7... O-O {[%clk 0:02:57.8]} 8. Qd2 {[%clk 0:03:00.5]}
8... Nc6 {[%clk 0:02:57.9]} 9. Bc4 {[%clk 0:03:00.9]} 9... Bd7 {[%clk
0:02:57.1]} 10. O-O-O {[%clk 0:03:00.1]} 10... Rc8 {[%clk 0:02:57.2]} 11. Be2
{[%clk 0:03:00.8]} 11... Ne5 {[%clk 0:02:44.3]} 12. g4 {[%clk 0:02:59.1]} 12...
Qa5 {[%clk 0:02:30]} 13. Nb3 {[%clk 0:02:58.3]} 13... Qc7 {[%clk 0:02:20.3]} 14.
Bxa7 {[%clk 0:02:00.9]} 14... b6 {[%clk 0:02:08.4]} 15. g5 {[%clk 0:02:00.7]}
15... Nxe4 {[%clk 0:01:41.8]} 16. fxe4 {[%clk 0:01:50.7]} 16... Qxa7 {[%clk
0:01:40.2]} 17. Kb1 {[%clk 0:01:40.3]} 17... Nc4 {[%clk 0:01:39.8]} 18. Bxc4
{[%clk 0:01:40.3]} 18... Rxc4 {[%clk 0:01:39.7]} 19. Nd5 {[%clk 0:01:41]} 19...
Bg4 {[%clk 0:01:23.5]} 20. Qd3 {[%clk 0:01:09.5]} 20... Ra4 {[%clk 0:01:08.9]}
21. Nc1 {[%clk 0:01:02.2]} 21... Bxd1 {[%clk 0:01:06.9]} 22. Rxd1 {[%clk
0:01:03.1]} 22... Rd4 {[%clk 0:00:59.9]} 23. Qe2 {[%clk 0:01:02.6]} 23... Rxd1
{[%clk 0:00:57.6]} 24. Qxd1 {[%clk 0:01:03.5]} 24... Rc8 {[%clk 0:00:55.5]} 25.
Qd3 {[%clk 0:00:58]} 25... Kf8 {[%clk 0:00:52.6]} 26. c3 {[%clk 0:00:47.2]}
26... Qb7 {[%clk 0:00:35.7]} 27. Ne2 {[%clk 0:00:45.1]} 27... e6 {[%clk
0:00:33.5]} 28. Ne3 {[%clk 0:00:44.2]} 28... Kg8 {[%clk 0:00:28.1]} 29. h4
{[%clk 0:00:38.9]} 29... d5 {[%clk 0:00:26.1]} 30. exd5 {[%clk 0:00:38.9]} 30...
exd5 {[%clk 0:00:26.2]} 31. Nxd5 {[%clk 0:00:39.2]} 31... Rd8 {[%clk 0:00:24.8]}
32. c4 {[%clk 0:00:32.5]} 32... Kh8 {[%clk 0:00:23.5]} 33. a4 {[%clk 0:00:31.3]}
33... Qd7 {[%clk 0:00:22.3]} 34. b3 {[%clk 0:00:31.1]} 34... Qg4 {[%clk
0:00:22]} 35. Qe3 {[%clk 0:00:24.5]} 35... Qxh4 {[%clk 0:00:20.1]} 36. Kc2
{[%clk 0:00:22.9]} 36... Qe1 {[%clk 0:00:10.4]} 37. Qe7 {[%clk 0:00:21]} 37...
Rf8 {[%clk 0:00:09.7]} 38. Nf6 {[%clk 0:00:19.2]} 38... Qa1 {[%clk 0:00:02.7]}
39. Nc3 {[%clk 0:00:17.2]} 39... Qf1 {[%clk 0:00:02.7]} 40. Ncd5 {[%clk
0:00:16.4]} 40... Qf5+ {[%clk 0:00:03.2]} 41. Kc3 {[%clk 0:00:16.1]} 41... Qxg5
{[%clk 0:00:03.6]} 42. Kb4 {[%clk 0:00:16.5]} 42... h5 {[%clk 0:00:02]} 43. Qd6
{[%clk 0:00:12.6]} 43... Qd2+ {[%clk 0:00:01.9]} 44. Kb5 {[%clk 0:00:12.5]}
44... Ra8 {[%clk 0:00:02.6]} 45. b4 {[%clk 0:00:12.1]} 45... Qd4 {[%clk
0:00:02.2]} 46. Qe7 {[%clk 0:00:09.7]} 46... Bxf6 {[%clk 0:00:01.6]} 47. Nxf6
{[%clk 0:00:10.6]} 47... Kg7 {[%clk 0:00:01.8]} 48. Ne8+ {[%clk 0:00:09.5]}
48... Kh6 {[%clk 0:00:02.3]} 49. Nd6 {[%clk 0:00:07.5]} 49... Qf4 {[%clk
0:00:01.5]} 50. Nxf7+ {[%clk 0:00:07.3]} 50... Kg7 {[%clk 0:00:02.1]} 51. Ne5+
{[%clk 0:00:06.7]} 51... Kh6 {[%clk 0:00:03]} 52. Qd6 {[%clk 0:00:06.5]} 52...
Qf5 {[%clk 0:00:02.7]} 53. Kxb6 {[%clk 0:00:07]} 53... Re8 {[%clk 0:00:02.9]}
54. Qd2+ {[%clk 0:00:05.2]} 54... g5 {[%clk 0:00:02.4]} 55. Nc6 {[%clk
0:00:03.9]} 55... Re6 {[%clk 0:00:02.9]} 56. b5 {[%clk 0:00:03.6]} 56... Qf6
{[%clk 0:00:01.9]} 57. c5 {[%clk 0:00:04.5]} 57... Re5 {[%clk 0:00:01.7]} 58.
Qd4 {[%clk 0:00:04.4]} 58... Re7 {[%clk 0:00:02.6]} 59. Qxf6+ {[%clk 0:00:04.5]}
1-0

[Event "*** Titled Tuesday Blitz"]
[Site "Chess.com"]
[Date "2020.05.26"]
[Round "1"]
[White "Roaccutane"]
[Black "manmanlai1"]
[Result "1-0"]
[WhiteElo "2722"]
[BlackElo "2362"]
[TimeControl "180+1"]
[EndTime "10:08:31 PDT"]
[Termination "Roaccutane won on time"]

1. d4 {[%clk 0:03:00.9]} 1... d5 {[%clk 0:02:58.9]} 2. c4 {[%clk 0:02:55.6]}
2... e6 {[%clk 0:02:59]} 3. Nf3 {[%clk 0:02:54.8]} 3... Nf6 {[%clk 0:02:58.5]}
4. Nc3 {[%clk 0:02:52.4]} 4... Bb4 {[%clk 0:02:58]} 5. Bg5 {[%clk 0:02:46.8]}
5... O-O {[%clk 0:02:56.8]} 6. e3 {[%clk 0:02:46.7]} 6... h6 {[%clk 0:02:56.9]}
7. Bh4 {[%clk 0:02:45.1]} 7... c6 {[%clk 0:02:53.5]} 8. Bd3 {[%clk 0:02:43.4]}
8... Nbd7 {[%clk 0:02:53.6]} 9. O-O {[%clk 0:02:42.7]} 9... dxc4 {[%clk
0:02:52]} 10. Bxc4 {[%clk 0:02:42.4]} 10... b5 {[%clk 0:02:48.6]} 11. Bd3 {[%clk
0:02:39.6]} 11... Bb7 {[%clk 0:02:48.2]} 12. Rc1 {[%clk 0:02:39.7]} 12... a6
{[%clk 0:02:47.4]} 13. Ne4 {[%clk 0:02:36]} 13... Be7 {[%clk 0:02:43.1]} 14. Bg3
{[%clk 0:02:36.1]} 14... Qb6 {[%clk 0:02:39.1]} 15. Nd6 {[%clk 0:02:32.2]} 15...
c5 {[%clk 0:02:30.3]} 16. Nxb7 {[%clk 0:02:31.1]} 16... Qxb7 {[%clk 0:02:26.7]}
17. dxc5 {[%clk 0:02:21.6]} 17... Nxc5 {[%clk 0:02:27.6]} 18. Bb1 {[%clk
0:02:21.6]} 18... Rfd8 {[%clk 0:02:22.2]} 19. Qe2 {[%clk 0:02:21.5]} 19... Rac8
{[%clk 0:02:21.4]} 20. Be5 {[%clk 0:02:14.1]} 20... Ncd7 {[%clk 0:02:17.6]} 21.
Bc3 {[%clk 0:01:55.6]} 21... b4 {[%clk 0:02:09.8]} 22. Bd4 {[%clk 0:01:53.6]}
22... Bc5 {[%clk 0:02:08.1]} 23. Rfd1 {[%clk 0:01:52.4]} 23... Bxd4 {[%clk
0:02:05]} 24. Nxd4 {[%clk 0:01:53.3]} 24... Rxc1 {[%clk 0:01:57.6]} 25. Rxc1
{[%clk 0:01:53.2]} 25... Rc8 {[%clk 0:01:56.4]} 26. Qd1 {[%clk 0:01:50.7]} 26...
Rxc1 {[%clk 0:01:51.6]} 27. Qxc1 {[%clk 0:01:51.6]} 27... a5 {[%clk 0:01:46.6]}
28. Qc6 {[%clk 0:01:43.9]} 28... Qa7 {[%clk 0:01:36.6]} 29. Qc8+ {[%clk
0:01:01]} 29... Nf8 {[%clk 0:01:35.3]} 30. Kf1 {[%clk 0:00:53.6]} 30... g6
{[%clk 0:01:35]} 31. Ke2 {[%clk 0:00:46.7]} 31... Kg7 {[%clk 0:01:34.7]} 32. Bd3
{[%clk 0:00:43.2]} 32... Nd5 {[%clk 0:01:19.2]} 33. g3 {[%clk 0:00:37.1]} 33...
h5 {[%clk 0:01:09.1]} 34. h4 {[%clk 0:00:36.8]} 34... Ne7 {[%clk 0:00:54.5]} 35.
Qd8 {[%clk 0:00:30.3]} 35... a4 {[%clk 0:00:33.9]} 36. Kd2 {[%clk 0:00:28.1]}
36... a3 {[%clk 0:00:32]} 37. b3 {[%clk 0:00:26.7]} 37... Nd5 {[%clk 0:00:29.8]}
38. Qc8 {[%clk 0:00:22.5]} 38... Qb6 {[%clk 0:00:18]} 39. Ne2 {[%clk 0:00:17.2]}
39... Nh7 {[%clk 0:00:12]} 40. e4 {[%clk 0:00:15.8]} 40... Ne7 {[%clk
0:00:07.4]} 41. Qe8 {[%clk 0:00:11.7]} 41... Nc6 {[%clk 0:00:05.8]} 42. f4
{[%clk 0:00:11.3]} 42... Nf6 {[%clk 0:00:05]} 43. Qc8 {[%clk 0:00:11.3]} 43...
Nd4 {[%clk 0:00:04.8]} 44. Qc1 {[%clk 0:00:09.2]} 44... Nf3+ {[%clk 0:00:03.3]}
45. Kc2 {[%clk 0:00:07.3]} 45... Ng4 {[%clk 0:00:03.1]} 46. Kb1 {[%clk
0:00:07.1]} 46... Qf2 {[%clk 0:00:01.7]} 47. Qc4 {[%clk 0:00:05.9]} 47... Ne3
{[%clk 0:00:00.6]} 48. Qc1 {[%clk 0:00:03.4]} 1-0